[Event "*** Titled Tuesday Blitz"]
[Site "Chess.com"]
[Date "2020.02.04"]
[Round "5"]
[White "CzechmVIII"]
[Black "Darhild"]
[Result "0-1"]
[WhiteElo "2183"]
[BlackElo "2708"]
[TimeControl "180+2"]
[EndTime "14:05:20 PST"]
[Termination "Darhild won by checkmate"]

1. e4 {[%clk 0:03:01.9]} 1... c5 {[%clk 0:03:00.7]} 2. Nf3 {[%clk 0:03:03]} 2...
d6 {[%clk 0:03:02]} 3. d4 {[%clk 0:03:03.7]} 3... cxd4 {[%clk 0:03:03.9]} 4.
Nxd4 {[%clk 0:03:05.2]} 4... Nf6 {[%clk 0:03:05.6]} 5. Nc3 {[%clk 0:03:06.7]}
5... a6 {[%clk 0:03:07.2]} 6. Bg5 {[%clk 0:03:07.8]} 6... e6 {[%clk 0:03:08.5]}
7. f4 {[%clk 0:03:08.4]} 7... h6 {[%clk 0:03:10.1]} 8. Bh4 {[%clk 0:03:07.4]}
8... Qb6 {[%clk 0:03:11.3]} 9. Bxf6 {[%clk 0:03:05.9]} 9... gxf6 {[%clk
0:03:09.9]} 10. Qd2 {[%clk 0:03:06.6]} 10... Qxb2 {[%clk 0:03:08.2]} 11. Nb3
{[%clk 0:03:07.6]} 11... Qa3 {[%clk 0:03:04.7]} 12. Be2 {[%clk 0:03:07.6]} 12...
Nd7 {[%clk 0:02:51.3]} 13. O-O {[%clk 0:03:04.9]} 13... Nc5 {[%clk 0:02:52.2]}
14. Kh1 {[%clk 0:03:03.1]} 14... Nxb3 {[%clk 0:02:49.6]} 15. axb3 {[%clk
0:03:03.4]} 15... Qc5 {[%clk 0:02:50.2]} 16. Bb5+ {[%clk 0:03:02.6]} 16... Kd8
{[%clk 0:02:37.3]} 17. e5 {[%clk 0:02:47.3]} 17... d5 {[%clk 0:02:10.8]} 18.
exf6 {[%clk 0:02:43.5]} 18... Bd6 {[%clk 0:02:12]} 19. Rfd1 {[%clk 0:02:15.9]}
19... Kc7 {[%clk 0:02:11.5]} 20. Bf1 {[%clk 0:02:04.3]} 20... Bd7 {[%clk
0:02:11.8]} 21. Na4 {[%clk 0:01:45.7]} 21... Qb4 {[%clk 0:01:53.5]} 22. Qxb4
{[%clk 0:01:25.5]} 22... Bxb4 {[%clk 0:01:54.4]} 23. c4 {[%clk 0:01:26.6]} 23...
b5 {[%clk 0:01:49.6]} 24. Nb2 {[%clk 0:01:09.9]} 24... Bc3 {[%clk 0:01:48.2]}
25. Ra2 {[%clk 0:01:00.1]} 25... Bxf6 {[%clk 0:01:47.8]} 26. cxd5 {[%clk
0:00:56.6]} 26... exd5 {[%clk 0:01:49]} 27. Nd3 {[%clk 0:00:54.4]} 27... a5
{[%clk 0:01:28.9]} 28. Rc1+ {[%clk 0:00:36.5]} 28... Kb6 {[%clk 0:01:29.7]} 29.
Ne5 {[%clk 0:00:34.8]} 29... Bxe5 {[%clk 0:01:23.4]} 30. fxe5 {[%clk 0:00:36.7]}
30... Rac8 {[%clk 0:01:25]} 31. Rca1 {[%clk 0:00:32]} 31... Ra8 {[%clk
0:01:25.9]} 32. Bd3 {[%clk 0:00:30.1]} 32... Rhc8 {[%clk 0:01:21.9]} 33. Rf2
{[%clk 0:00:22.4]} 33... Be6 {[%clk 0:01:22.8]} 34. Bf5 {[%clk 0:00:22.2]} 34...
Rc3 {[%clk 0:01:15.4]} 35. Bxe6 {[%clk 0:00:21.7]} 35... fxe6 {[%clk 0:01:17.3]}
36. Rf6 {[%clk 0:00:22.8]} 36... Rxb3 {[%clk 0:01:15.1]} 37. Rxe6+ {[%clk
0:00:23.9]} 37... Kc5 {[%clk 0:01:16.7]} 38. Rxh6 {[%clk 0:00:24.4]} 38... a4
{[%clk 0:01:18.2]} 39. e6 {[%clk 0:00:24]} 39... a3 {[%clk 0:01:15.4]} 40. e7
{[%clk 0:00:24]} 40... a2 {[%clk 0:01:16.6]} 41. e8=Q {[%clk 0:00:12.8]} 41...
Rb1+ {[%clk 0:01:07.5]} 42. Qe1 {[%clk 0:00:12.2]} 42... Rxe1+ {[%clk
0:01:08.6]} 43. Rxe1 {[%clk 0:00:13.3]} 43... a1=Q {[%clk 0:01:10.5]} 44. Rxa1
{[%clk 0:00:14.2]} 44... Rxa1# {[%clk 0:01:12]} 0-1

[Event "*** Titled Tuesday Blitz"]
[Site "Chess.com"]
[Date "2020.02.04"]
[Round "5"]
[White "hypert"]
[Black "norwaytoadog"]
[Result "1-0"]
[WhiteElo "2462"]
[BlackElo "2288"]
[TimeControl "180+2"]
[EndTime "14:05:21 PST"]
[Termination "hypert won on time"]

1. e4 {[%clk 0:03:01.9]} 1... e5 {[%clk 0:03:00.6]} 2. Nf3 {[%clk 0:03:03.1]}
2... Nc6 {[%clk 0:03:01.9]} 3. Bb5 {[%clk 0:03:04.6]} 3... a6 {[%clk 0:03:02.9]}
4. Ba4 {[%clk 0:03:05.9]} 4... Nf6 {[%clk 0:03:04.2]} 5. O-O {[%clk 0:03:07.4]}
5... Be7 {[%clk 0:03:05.5]} 6. Re1 {[%clk 0:03:08.6]} 6... b5 {[%clk 0:03:06.8]}
7. Bb3 {[%clk 0:03:10.1]} 7... d6 {[%clk 0:03:08.2]} 8. c3 {[%clk 0:03:09.1]}
8... O-O {[%clk 0:03:09.3]} 9. h3 {[%clk 0:03:09.8]} 9... Bb7 {[%clk 0:03:10.4]}
10. d4 {[%clk 0:03:10.7]} 10... Re8 {[%clk 0:03:11.7]} 11. a3 {[%clk 0:03:11.9]}
11... h6 {[%clk 0:03:08.6]} 12. Nbd2 {[%clk 0:03:11.4]} 12... Bf8 {[%clk
0:03:09.1]} 13. Bc2 {[%clk 0:02:51]} 13... g6 {[%clk 0:03:02.3]} 14. a4 {[%clk
0:02:46.9]} 14... exd4 {[%clk 0:02:57.6]} 15. cxd4 {[%clk 0:02:47.8]} 15... Nb4
{[%clk 0:02:58.7]} 16. Bb1 {[%clk 0:02:49]} 16... c5 {[%clk 0:02:58.7]} 17. d5
{[%clk 0:02:42.7]} 17... Nd7 {[%clk 0:02:40.8]} 18. Nh2 {[%clk 0:02:41.5]} 18...
Bg7 {[%clk 0:02:39.3]} 19. Ndf3 {[%clk 0:02:38.4]} 19... c4 {[%clk 0:02:32.8]}
20. Ra3 {[%clk 0:02:09.6]} 20... Nc5 {[%clk 0:02:14.6]} 21. Ng4 {[%clk
0:02:00.9]} 21... h5 {[%clk 0:01:50.3]} 22. Nh6+ {[%clk 0:02:01.8]} 22... Kf8
{[%clk 0:01:48.3]} 23. e5 {[%clk 0:02:02.5]} 23... Nbd3 {[%clk 0:01:33.9]} 24.
Bxd3 {[%clk 0:02:01.9]} 24... Nxd3 {[%clk 0:01:33.8]} 25. Rxd3 {[%clk
0:01:55.1]} 25... cxd3 {[%clk 0:01:33.2]} 26. e6 {[%clk 0:01:42.4]} 26... fxe6
{[%clk 0:01:15]} 27. Qxd3 {[%clk 0:01:41.2]} 27... Qf6 {[%clk 0:00:58.3]} 28.
Bg5 {[%clk 0:01:28.4]} 28... Qxg5 {[%clk 0:00:30.2]} 29. Nxg5 {[%clk 0:01:28.4]}
29... Bxh6 {[%clk 0:00:31.1]} 30. Nxe6+ {[%clk 0:01:08.3]} 30... Kf7 {[%clk
0:00:24.8]} 31. Qf3+ {[%clk 0:01:07]} 31... Kg8 {[%clk 0:00:23.2]} 32. Qf6
{[%clk 0:01:02.9]} 32... Kh7 {[%clk 0:00:14.1]} 33. Qf7+ {[%clk 0:01:02.1]}
33... Kh8 {[%clk 0:00:15.4]} 34. Qxg6 {[%clk 0:01:02.3]} 34... Bf8 {[%clk
0:00:10.3]} 35. Qxh5+ {[%clk 0:01:00.8]} 35... Kg8 {[%clk 0:00:10.9]} 36. Qg6+
{[%clk 0:00:58.3]} 36... Kh8 {[%clk 0:00:10.8]} 37. Re4 {[%clk 0:00:59.3]} 1-0

[Event "*** Titled Tuesday Blitz"]
[Site "Chess.com"]
[Date "2020.02.04"]
[Round "5"]
[White "ChadBiryani"]
[Black "SerGo055"]
[Result "0-1"]
[WhiteElo "2312"]
[BlackElo "2550"]
[TimeControl "180+2"]
[EndTime "14:05:24 PST"]
[Termination "SerGo055 won by resignation"]

1. d4 {[%clk 0:03:01.9]} 1... Nf6 {[%clk 0:03:00.3]} 2. Bf4 {[%clk 0:03:01]}
2... c5 {[%clk 0:02:59]} 3. dxc5 {[%clk 0:02:58.6]} 3... Na6 {[%clk 0:02:58.8]}
4. f3 {[%clk 0:02:55.1]} 4... Nxc5 {[%clk 0:02:54.5]} 5. e4 {[%clk 0:02:56.4]}
5... d6 {[%clk 0:02:55.8]} 6. Bc4 {[%clk 0:02:54.9]} 6... g6 {[%clk 0:02:56.4]}
7. Qd2 {[%clk 0:02:42]} 7... Bg7 {[%clk 0:02:55.3]} 8. Nc3 {[%clk 0:02:43.3]}
8... a6 {[%clk 0:02:54.8]} 9. a4 {[%clk 0:02:23.1]} 9... Be6 {[%clk 0:02:53.2]}
10. Bxe6 {[%clk 0:02:15.5]} 10... Nxe6 {[%clk 0:02:55.1]} 11. Be3 {[%clk
0:02:16.6]} 11... Rc8 {[%clk 0:02:55]} 12. Nge2 {[%clk 0:02:17.1]} 12... O-O
{[%clk 0:02:55.5]} 13. O-O {[%clk 0:02:16.8]} 13... Nd7 {[%clk 0:02:50.3]} 14.
Kh1 {[%clk 0:02:01.4]} 14... Ne5 {[%clk 0:02:50.1]} 15. Qc1 {[%clk 0:01:55]}
15... Nc4 {[%clk 0:02:47]} 16. Bh6 {[%clk 0:01:47.8]} 16... Bxh6 {[%clk
0:01:59.4]} 17. Qxh6 {[%clk 0:01:49.7]} 17... Nxb2 {[%clk 0:02:01]} 18. Rfb1
{[%clk 0:01:45]} 18... Nc4 {[%clk 0:02:01.3]} 19. Rxb7 {[%clk 0:01:45.9]} 19...
Rc7 {[%clk 0:01:52.9]} 20. Rb4 {[%clk 0:01:40.4]} 20... Ne5 {[%clk 0:01:53.1]}
21. Rab1 {[%clk 0:01:02.3]} 21... Nc6 {[%clk 0:01:37.7]} 22. R4b2 {[%clk
0:00:47.5]} 22... Ncd4 {[%clk 0:01:37.9]} 23. Nxd4 {[%clk 0:00:39.7]} 23... Nxd4
{[%clk 0:01:39.8]} 24. Nd5 {[%clk 0:00:41]} 24... Rxc2 {[%clk 0:01:40]} 25. Rxc2
{[%clk 0:00:42.1]} 25... Nxc2 {[%clk 0:01:41.9]} 26. Qd2 {[%clk 0:00:38.1]}
26... e6 {[%clk 0:01:29.8]} 27. Nc3 {[%clk 0:00:30.4]} 27... Na3 {[%clk
0:01:29.9]} 28. Rb4 {[%clk 0:00:18.5]} 28... Qa5 {[%clk 0:01:18.9]} 29. Qxd6
{[%clk 0:00:07.5]} 29... Rc8 {[%clk 0:01:16.4]} 30. Ne2 {[%clk 0:00:05.6]} 30...
Nc4 {[%clk 0:01:10]} 31. Qe7 {[%clk 0:00:05.4]} 31... Ne5 {[%clk 0:01:03.8]} 32.
h4 {[%clk 0:00:05.7]} 32... Nd3 {[%clk 0:01:04.4]} 33. Rb7 {[%clk 0:00:05.9]}
33... Qe1+ {[%clk 0:01:05.2]} 34. Kh2 {[%clk 0:00:07.3]} 34... Rf8 {[%clk
0:01:03]} 35. Rd7 {[%clk 0:00:08.6]} 35... Qxe2 {[%clk 0:01:01.2]} 36. Rd8
{[%clk 0:00:10.1]} 36... Rxd8 {[%clk 0:01:02]} 37. Qxd8+ {[%clk 0:00:11.6]}
37... Kg7 {[%clk 0:01:03.6]} 38. Qd4+ {[%clk 0:00:13.3]} 38... e5 {[%clk
0:01:05.2]} 0-1

[Event "*** Titled Tuesday Blitz"]
[Site "Chess.com"]
[Date "2020.02.04"]
[Round "5"]
[White "semchik73"]
[Black "SlavenPastar"]
[Result "1-0"]
[WhiteElo "2314"]
[BlackElo "2475"]
[TimeControl "180+2"]
[EndTime "14:05:31 PST"]
[Termination "semchik73 won on time"]

1. Nf3 {[%clk 0:03:01.2]} 1... d5 {[%clk 0:03:00.5]} 2. c4 {[%clk 0:03:02.3]}
2... d4 {[%clk 0:02:58.8]} 3. e3 {[%clk 0:03:03.1]} 3... c5 {[%clk 0:02:59.5]}
4. b4 {[%clk 0:03:04.6]} 4... dxe3 {[%clk 0:02:49.2]} 5. fxe3 {[%clk 0:03:06]}
5... cxb4 {[%clk 0:02:50.1]} 6. d4 {[%clk 0:03:07.2]} 6... e6 {[%clk 0:02:50.5]}
7. Bd3 {[%clk 0:03:07.6]} 7... Nf6 {[%clk 0:02:51.7]} 8. O-O {[%clk 0:03:08]}
8... Bd7 {[%clk 0:02:52.8]} 9. e4 {[%clk 0:03:07.6]} 9... Nc6 {[%clk 0:02:49.5]}
10. e5 {[%clk 0:03:03.6]} 10... Ng8 {[%clk 0:02:37.8]} 11. d5 {[%clk 0:03:01.4]}
11... exd5 {[%clk 0:02:20.8]} 12. cxd5 {[%clk 0:03:02.2]} 12... Nce7 {[%clk
0:02:09.7]} 13. Ng5 {[%clk 0:02:38.3]} 13... Nh6 {[%clk 0:02:04.8]} 14. e6
{[%clk 0:02:36.7]} 14... fxe6 {[%clk 0:02:00]} 15. dxe6 {[%clk 0:02:37.3]} 15...
Bxe6 {[%clk 0:01:41.1]} 16. Nxe6 {[%clk 0:02:34.8]} 16... Qb6+ {[%clk
0:01:40.3]} 17. Kh1 {[%clk 0:02:35.9]} 17... Qxe6 {[%clk 0:01:32.3]} 18. Bb5+
{[%clk 0:02:36.7]} 18... Nc6 {[%clk 0:01:28]} 19. Re1 {[%clk 0:02:37.6]} 19...
Qxe1+ {[%clk 0:01:20.9]} 20. Qxe1+ {[%clk 0:02:38.2]} 20... Be7 {[%clk
0:01:19.4]} 21. Bxh6 {[%clk 0:02:32.3]} 21... gxh6 {[%clk 0:01:18.5]} 22. Nd2
{[%clk 0:02:32.9]} 22... Kd7 {[%clk 0:00:42.2]} 23. Nc4 {[%clk 0:02:32]} 23...
Bf6 {[%clk 0:00:36.4]} 24. Rd1+ {[%clk 0:02:28.9]} 24... Kc7 {[%clk 0:00:35.9]}
25. Qe6 {[%clk 0:02:26.6]} 25... Rad8 {[%clk 0:00:29.1]} 26. Rxd8 {[%clk
0:02:26.2]} 26... Rxd8 {[%clk 0:00:31]} 27. h3 {[%clk 0:02:25.2]} 27... Bc3
{[%clk 0:00:19.7]} 28. Qf7+ {[%clk 0:02:18.1]} 28... Rd7 {[%clk 0:00:15.8]} 29.
Qf4+ {[%clk 0:02:14.7]} 29... Kd8 {[%clk 0:00:14.2]} 30. Bxc6 {[%clk 0:02:11.5]}
30... bxc6 {[%clk 0:00:15]} 31. Ne5 {[%clk 0:02:05.7]} 31... Bxe5 {[%clk
0:00:04]} 32. Qxe5 {[%clk 0:02:06]} 32... Rc7 {[%clk 0:00:02.4]} 33. Qd4+ {[%clk
0:02:04.4]} 33... Kc8 {[%clk 0:00:03.8]} 34. Qxb4 {[%clk 0:02:05.3]} 34... c5
{[%clk 0:00:05.4]} 35. Qg4+ {[%clk 0:02:05.3]} 35... Kb7 {[%clk 0:00:06.4]} 36.
Qe4+ {[%clk 0:02:05.6]} 36... Kb6 {[%clk 0:00:07.7]} 37. Qc4 {[%clk 0:02:06.8]}
37... Rd7 {[%clk 0:00:08.5]} 38. Qe6+ {[%clk 0:02:06.5]} 38... Kc7 {[%clk
0:00:09.8]} 39. Qxh6 {[%clk 0:02:06]} 39... Kb7 {[%clk 0:00:08.3]} 40. Qe6
{[%clk 0:02:03.8]} 40... Rc7 {[%clk 0:00:08.7]} 41. Qc4 {[%clk 0:02:04.2]} 41...
Kb6 {[%clk 0:00:10]} 42. g4 {[%clk 0:02:05.2]} 42... Rc6 {[%clk 0:00:10.8]} 43.
h4 {[%clk 0:02:05.2]} 43... Rd6 {[%clk 0:00:11.5]} 44. Qb3+ {[%clk 0:02:05.2]}
44... Kc6 {[%clk 0:00:11.9]} 45. Qf3+ {[%clk 0:02:04.5]} 45... Kb5 {[%clk
0:00:11.6]} 46. g5 {[%clk 0:02:04.4]} 46... c4 {[%clk 0:00:11.2]} 47. h5 {[%clk
0:02:05.3]} 47... Kb4 {[%clk 0:00:10.6]} 48. Qb7+ {[%clk 0:02:01.9]} 48... Kc3
{[%clk 0:00:06.6]} 49. Qxh7 {[%clk 0:02:03.2]} 49... Kb2 {[%clk 0:00:04.7]} 50.
Qg7+ {[%clk 0:02:02.7]} 50... c3 {[%clk 0:00:05.6]} 51. h6 {[%clk 0:02:03.7]}
1-0

[Event "*** Titled Tuesday Blitz"]
[Site "Chess.com"]
[Date "2020.02.04"]
[Round "5"]
[White "djano"]
[Black "ChessPlayer202202"]
[Result "0-1"]
[WhiteElo "2353"]
[BlackElo "2256"]
[TimeControl "180+2"]
[EndTime "14:05:38 PST"]
[Termination "ChessPlayer202202 won by resignation"]

1. c4 {[%clk 0:03:01.9]} 1... Nf6 {[%clk 0:02:56.8]} 2. Nc3 {[%clk 0:03:01.9]}
2... c5 {[%clk 0:02:57.5]} 3. g3 {[%clk 0:03:02.5]} 3... d5 {[%clk 0:02:58.3]}
4. cxd5 {[%clk 0:03:02.5]} 4... Nxd5 {[%clk 0:03:00.2]} 5. Bg2 {[%clk
0:03:04.3]} 5... Nc7 {[%clk 0:03:00.7]} 6. Nf3 {[%clk 0:03:04.6]} 6... Nc6
{[%clk 0:03:01.5]} 7. d3 {[%clk 0:03:05.6]} 7... e5 {[%clk 0:03:02.9]} 8. O-O
{[%clk 0:03:05.1]} 8... Be7 {[%clk 0:03:03.5]} 9. Be3 {[%clk 0:03:03.2]} 9...
Bd7 {[%clk 0:02:59.2]} 10. Nd2 {[%clk 0:02:59.7]} 10... O-O {[%clk 0:02:53]} 11.
Rc1 {[%clk 0:02:48.5]} 11... Rc8 {[%clk 0:02:49.6]} 12. f4 {[%clk 0:02:39.9]}
12... exf4 {[%clk 0:02:49.7]} 13. gxf4 {[%clk 0:02:41.5]} 13... f5 {[%clk
0:02:49.5]} 14. Nf3 {[%clk 0:02:38.3]} 14... Ne6 {[%clk 0:02:42.3]} 15. Qb3
{[%clk 0:02:30.7]} 15... Kh8 {[%clk 0:02:27.4]} 16. Nd5 {[%clk 0:02:21.1]} 16...
Bd6 {[%clk 0:02:23.9]} 17. Qxb7 {[%clk 0:02:06]} 17... Rb8 {[%clk 0:02:08.5]}
18. Qa6 {[%clk 0:02:06.9]} 18... Rxb2 {[%clk 0:01:59]} 19. Rb1 {[%clk
0:01:46.6]} 19... Qb8 {[%clk 0:01:16]} 20. Nc3 {[%clk 0:01:42.7]} 20... Nb4
{[%clk 0:00:49.2]} 21. Qc4 {[%clk 0:01:32.7]} 21... Rxb1 {[%clk 0:00:32.4]} 22.
Rxb1 {[%clk 0:01:34.6]} 22... Qc7 {[%clk 0:00:34.1]} 23. a3 {[%clk 0:01:16.9]}
23... Nc2 {[%clk 0:00:35.2]} 24. Nd5 {[%clk 0:01:11.9]} 24... Nxe3 {[%clk
0:00:34.7]} 25. Nxe3 {[%clk 0:01:03.3]} 25... Bxf4 {[%clk 0:00:34.2]} 26. Nd5
{[%clk 0:01:03.9]} 26... Qd6 {[%clk 0:00:32.6]} 27. e4 {[%clk 0:00:56.4]} 27...
fxe4 {[%clk 0:00:31.1]} 28. dxe4 {[%clk 0:00:58.3]} 28... Nd4 {[%clk 0:00:24.6]}
29. Nxd4 {[%clk 0:00:40.3]} 29... Bxh2+ {[%clk 0:00:23.1]} 30. Kh1 {[%clk
0:00:41.5]} 30... cxd4 {[%clk 0:00:25]} 31. Qxd4 {[%clk 0:00:37.8]} 31... Qh6
{[%clk 0:00:22.5]} 32. Qd3 {[%clk 0:00:19.9]} 32... Bg3+ {[%clk 0:00:21.6]} 0-1

[Event "*** Titled Tuesday Blitz"]
[Site "Chess.com"]
[Date "2020.02.04"]
[Round "5"]
[White "gena217"]
[Black "kleinebeer98"]
[Result "1-0"]
[WhiteElo "2993"]
[BlackElo "2704"]
[TimeControl "180+2"]
[EndTime "14:05:43 PST"]
[Termination "gena217 won by resignation"]

1. e3 {[%clk 0:02:53.5]} 1... Nf6 {[%clk 0:03:00]} 2. Nf3 {[%clk 0:02:53.6]}
2... g6 {[%clk 0:02:58.9]} 3. d4 {[%clk 0:02:46.7]} 3... Bg7 {[%clk 0:02:59.5]}
4. c4 {[%clk 0:02:47.6]} 4... O-O {[%clk 0:03:00.4]} 5. Be2 {[%clk 0:02:49.1]}
5... d6 {[%clk 0:03:00.3]} 6. O-O {[%clk 0:02:49.9]} 6... Nbd7 {[%clk
0:03:01.3]} 7. Nc3 {[%clk 0:02:44.9]} 7... e5 {[%clk 0:03:01.8]} 8. b4 {[%clk
0:02:42.5]} 8... Re8 {[%clk 0:02:58.9]} 9. a4 {[%clk 0:02:41.3]} 9... a5 {[%clk
0:02:50.5]} 10. b5 {[%clk 0:02:28.2]} 10... exd4 {[%clk 0:02:40.4]} 11. exd4
{[%clk 0:02:28.9]} 11... Nb6 {[%clk 0:02:41.8]} 12. h3 {[%clk 0:02:23]} 12...
Be6 {[%clk 0:02:28.8]} 13. Qb3 {[%clk 0:02:13.3]} 13... h6 {[%clk 0:02:10.5]}
14. Re1 {[%clk 0:02:12.9]} 14... Bf5 {[%clk 0:01:42]} 15. Be3 {[%clk 0:02:06.2]}
15... Ne4 {[%clk 0:01:36.7]} 16. Nxe4 {[%clk 0:02:00.2]} 16... Bxe4 {[%clk
0:01:38.6]} 17. Nd2 {[%clk 0:02:00.9]} 17... Bf5 {[%clk 0:01:29.4]} 18. Bf3
{[%clk 0:02:01.3]} 18... Rb8 {[%clk 0:01:24.4]} 19. Rad1 {[%clk 0:02:01.2]}
19... Qh4 {[%clk 0:01:21.9]} 20. Nf1 {[%clk 0:01:42.1]} 20... Be6 {[%clk
0:01:22.1]} 21. d5 {[%clk 0:01:42.3]} 21... Bd7 {[%clk 0:01:14.4]} 22. Be2
{[%clk 0:01:37.6]} 22... Re7 {[%clk 0:01:03.8]} 23. Nh2 {[%clk 0:01:29.3]} 23...
Rbe8 {[%clk 0:01:00.6]} 24. Nf3 {[%clk 0:01:29.8]} 24... Rxe3 {[%clk 0:00:53.3]}
25. Qxe3 {[%clk 0:01:16.3]} 25... Rxe3 {[%clk 0:00:53.9]} 26. Nxh4 {[%clk
0:01:17]} 26... Ra3 {[%clk 0:00:55.3]} 27. Bg4 {[%clk 0:01:16]} 27... Kf8 {[%clk
0:00:51.4]} 28. c5 {[%clk 0:01:06.1]} 28... dxc5 {[%clk 0:00:44.6]} 29. d6
{[%clk 0:01:06]} 29... Bxg4 {[%clk 0:00:29.8]} 30. hxg4 {[%clk 0:01:01.1]} 30...
Bd4 {[%clk 0:00:24.8]} 31. dxc7 {[%clk 0:00:57.8]} 31... Rxa4 {[%clk 0:00:24.8]}
32. Nf3 {[%clk 0:00:56.7]} 32... Rb4 {[%clk 0:00:19.8]} 33. Re2 {[%clk
0:00:51.5]} 33... a4 {[%clk 0:00:18.8]} 34. Ne5 {[%clk 0:00:45.5]} 34... Bxe5
{[%clk 0:00:11.6]} 35. Rxe5 {[%clk 0:00:47.4]} 35... a3 {[%clk 0:00:09.1]} 36.
Rxc5 {[%clk 0:00:44.7]} 36... Nc8 {[%clk 0:00:08]} 37. Rd8+ {[%clk 0:00:44.6]}
37... Kg7 {[%clk 0:00:08.9]} 38. Rxc8 {[%clk 0:00:46.5]} 38... a2 {[%clk
0:00:10.8]} 39. Ra8 {[%clk 0:00:48]} 39... Rb1+ {[%clk 0:00:11.4]} 40. Kh2
{[%clk 0:00:49.3]} 1-0

[Event "*** Titled Tuesday Blitz"]
[Site "Chess.com"]
[Date "2020.02.04"]
[Round "5"]
[White "Indianlad"]
[Black "Tayson_7"]
[Result "1-0"]
[WhiteElo "2942"]
[BlackElo "2682"]
[TimeControl "180+2"]
[EndTime "14:05:45 PST"]
[Termination "Indianlad won by resignation"]

1. c4 {[%clk 0:03:01.9]} 1... Nf6 {[%clk 0:03:00.5]} 2. Nc3 {[%clk 0:03:03.3]}
2... c5 {[%clk 0:02:58.6]} 3. Nf3 {[%clk 0:03:04.5]} 3... Nc6 {[%clk 0:02:54]}
4. g3 {[%clk 0:03:05.4]} 4... g6 {[%clk 0:02:52.6]} 5. Bg2 {[%clk 0:03:06.3]}
5... Bg7 {[%clk 0:02:54.1]} 6. d4 {[%clk 0:03:07.6]} 6... cxd4 {[%clk
0:02:54.6]} 7. Nxd4 {[%clk 0:03:09.5]} 7... O-O {[%clk 0:02:55.8]} 8. c5 {[%clk
0:03:07.7]} 8... d5 {[%clk 0:02:28.9]} 9. cxd6 {[%clk 0:03:07.2]} 9... Nxd4
{[%clk 0:02:29.5]} 10. Qxd4 {[%clk 0:03:08.8]} 10... Ne8 {[%clk 0:02:27.4]} 11.
Qb4 {[%clk 0:03:07.5]} 11... Qxd6 {[%clk 0:02:14.6]} 12. Qh4 {[%clk 0:03:08.4]}
12... Nf6 {[%clk 0:01:55.5]} 13. O-O {[%clk 0:03:09.6]} 13... Bg4 {[%clk
0:01:50.8]} 14. h3 {[%clk 0:03:07.3]} 14... Be6 {[%clk 0:01:46.5]} 15. Bxb7
{[%clk 0:03:04]} 15... Rad8 {[%clk 0:01:46.9]} 16. Be3 {[%clk 0:03:00.4]} 16...
Qb8 {[%clk 0:01:42.6]} 17. Bf3 {[%clk 0:02:55.8]} 17... Qxb2 {[%clk 0:01:42.5]}
18. Rac1 {[%clk 0:02:57.5]} 18... Rc8 {[%clk 0:01:36.4]} 19. Na4 {[%clk
0:02:57.9]} 19... Qxa2 {[%clk 0:01:34.2]} 20. Nc5 {[%clk 0:02:59.4]} 20... Bd5
{[%clk 0:01:30]} 21. Ra1 {[%clk 0:02:59.5]} 21... Qc2 {[%clk 0:01:26.8]} 22.
Rfc1 {[%clk 0:02:59.9]} 22... Qf5 {[%clk 0:01:28.1]} 23. g4 {[%clk 0:02:51.4]}
23... Qe5 {[%clk 0:01:21.1]} 24. Nd3 {[%clk 0:02:48.6]} 24... Rxc1+ {[%clk
0:00:57.3]} 25. Rxc1 {[%clk 0:02:44.8]} 25... Qd6 {[%clk 0:00:58.4]} 26. Bf4
{[%clk 0:02:45.5]} 26... Qd8 {[%clk 0:00:59.1]} 27. Bxd5 {[%clk 0:02:41.4]}
27... Nxd5 {[%clk 0:01:01]} 28. Bh6 {[%clk 0:02:42.1]} 28... a5 {[%clk
0:00:51.4]} 29. Bxg7 {[%clk 0:02:43.2]} 29... Kxg7 {[%clk 0:00:53.3]} 30. Qg5
{[%clk 0:02:43.4]} 30... e6 {[%clk 0:00:53.8]} 31. Qd2 {[%clk 0:02:42.2]} 31...
Qb6 {[%clk 0:00:38.3]} 32. e4 {[%clk 0:02:43.1]} 32... Nb4 {[%clk 0:00:37.1]}
33. Qc3+ {[%clk 0:02:44.4]} 33... Kg8 {[%clk 0:00:38.1]} 34. Rb1 {[%clk
0:02:39.8]} 34... Rb8 {[%clk 0:00:32.5]} 35. Ne5 {[%clk 0:02:40.7]} 35... Rd8
{[%clk 0:00:30.6]} 36. g5 {[%clk 0:02:39.5]} 36... Qd4 {[%clk 0:00:28.4]} 37.
Qxd4 {[%clk 0:02:40.8]} 37... Rxd4 {[%clk 0:00:29.2]} 38. f3 {[%clk 0:02:39.7]}
38... a4 {[%clk 0:00:27.9]} 39. Ra1 {[%clk 0:02:30]} 39... Na6 {[%clk
0:00:25.3]} 40. Nc6 {[%clk 0:02:22.9]} 40... Rc4 {[%clk 0:00:25.1]} 41. Ne5
{[%clk 0:02:19.9]} 41... Rd4 {[%clk 0:00:24.4]} 42. Kf2 {[%clk 0:02:19.8]} 42...
Nc5 {[%clk 0:00:23.3]} 43. Ke3 {[%clk 0:02:19.5]} 43... Rd8 {[%clk 0:00:24.5]}
44. Rc1 {[%clk 0:02:17.9]} 44... Nb3 {[%clk 0:00:23.2]} 45. Rc7 {[%clk
0:02:19.5]} 45... a3 {[%clk 0:00:23.6]} 46. Ra7 {[%clk 0:02:20.4]} 46... Nd4
{[%clk 0:00:23.7]} 47. Nxf7 {[%clk 0:02:19.2]} 47... Nc2+ {[%clk 0:00:22.8]} 48.
Kf2 {[%clk 0:02:13.2]} 48... Rd2+ {[%clk 0:00:23.8]} 49. Kg3 {[%clk 0:02:14.3]}
49... Kf8 {[%clk 0:00:24.6]} 50. Ne5 {[%clk 0:02:14]} 50... Ke8 {[%clk
0:00:24.5]} 51. Nc4 {[%clk 0:01:59.5]} 51... Rd3 {[%clk 0:00:25.3]} 52. Kf4
{[%clk 0:02:01.2]} 52... Rc3 {[%clk 0:00:24.9]} 53. Nd6+ {[%clk 0:02:00.4]}
53... Kd8 {[%clk 0:00:26.3]} 54. Ke5 {[%clk 0:02:02.1]} 54... Rc5+ {[%clk
0:00:23.6]} 55. Kxe6 {[%clk 0:02:01]} 55... Nd4+ {[%clk 0:00:24.7]} 56. Kf6
{[%clk 0:02:02.7]} 56... Rc7 {[%clk 0:00:25.9]} 57. Rxa3 {[%clk 0:01:59.9]}
57... Kd7 {[%clk 0:00:23.1]} 58. e5 {[%clk 0:01:58.9]} 58... Kc6 {[%clk
0:00:21]} 59. Rc3+ {[%clk 0:01:59.1]} 1-0